bitfinex/quotes_BTCUSD_20260307
["timestamp","ask_amount","ask_price","bid_price","bid_amount"]
[1772921067055,0.09318621,67431.0,67424.0,0.0002]
[1772921067267,0.09318621,67431.0,67425.0,0.00148]
[1772921067694,0.09318621,67431.0,67426.0,0.00148]
[1772921068125,0.09318621,67431.0,67424.0,0.0002]
[1772921068326,0.09318621,67431.0,67425.0,0.00148]
[1772921068731,0.01881622,67430.0,67426.0,0.00148]
[1772921069256,0.01881622,67430.0,67427.0,0.00148]
[1772921070539,0.00022001,67431.0,67427.0,0.00148]
[1772921070710,0.00022001,67431.0,67427.0,0.07563404]
[1772921077571,0.00022001,67431.0,67427.0,0.07583404]
[1772921078451,0.0199128,67430.0,67427.0,0.07583404]
[1772921078982,0.0199128,67430.0,67428.0,0.00148]
[1772921079293,0.00022001,67431.0,67429.0,0.00148]
[1772921079429,0.00022001,67431.0,67430.0,0.00148]
[1772921079840,0.00022001,67431.0,67430.0,0.00026779]
[1772921080446,0.09424143,67431.0,67430.0,0.00026779]
[1772921080663,0.00022001,67431.0,67430.0,0.00026779]
[1772921080944,0.00022001,67431.0,67418.0,0.00016875]
[1772921081149,0.00022001,67431.0,67419.0,0.00148]
[1772921081955,0.0200466,67431.0,67419.0,0.00148]
[1772921082534,0.0200466,67431.0,67415.0,0.07416416]
[1772921082535,0.08933117,67429.0,67415.0,0.07416416]
[1772921082739,0.08933117,67428.0,67415.0,0.07416416]
[1772921082976,0.01989052,67427.0,67417.0,0.00148]
[1772921083106,0.08933117,67425.0,67417.0,1.1e-06]
[1772921083304,0.01989052,67424.0,67418.0,0.00148]
[1772921083646,0.01989052,67424.0,67419.0,0.00148]
[1772921083854,0.01989052,67422.0,67419.0,0.00148]
[1772921084195,0.01989052,67422.0,67420.0,0.00148]
[1772921084627,0.01989052,67422.0,67419.0,0.0002]
[1772921084853,0.0198525,67420.0,67412.0,0.0002]
[1772921085036,0.07416306,67419.0,67413.0,0.00148]
[1772921086120,0.07416306,67419.0,67413.0,0.0757564]
[1772921086725,0.07416128,67421.0,67413.0,0.0757564]
[1772921086931,0.07437098,67431.0,67414.0,0.08605098]
[1772921087139,0.07437098,67431.0,67415.0,0.07416747]
[1772921087333,0.09442555,67431.0,67415.0,0.07416747]
[1772921087777,0.00022001,67431.0,67416.0,0.08605098]
[1772921088551,0.00022001,67431.0,67417.0,0.00206506]
[1772921088764,0.00022001,67431.0,67419.0,0.00206506]
[1772921089006,0.00022001,67431.0,67420.0,0.00148]
[1772921089415,0.00022001,67431.0,67421.0,0.07416086]
[1772921091428,0.00022001,67431.0,67421.0,0.07436086]
[1772921096810,0.01918819,67431.0,67421.0,0.07436086]
[1772921100194,0.00022001,67431.0,67421.0,0.07436086]
[1772921101549,0.01896818,67435.0,67421.0,0.07436086]
[1772921101900,0.07456144,67440.0,67423.0,0.0015414]
[1772921101901,0.00022001,67438.0,67423.0,0.0015414]
[1772921102111,0.0197354,67438.0,67423.0,0.0015414]
[1772921102309,0.0197354,67438.0,67424.0,0.07415757]
[1772921102462,0.0938784,67438.0,67424.0,0.07415757]
[1772921103476,0.0197354,67438.0,67424.0,0.07415757]
[1772921104134,0.09387772,67438.0,67424.0,0.07415757]
[1772921104465,0.09387772,67438.0,67424.0,0.07558435]
[1772921105113,0.00022001,67431.0,67424.0,0.07558435]
[1772921106197,0.0743598,67441.0,67424.0,0.07558435]
[1772921106198,0.0197354,67443.0,67425.0,0.0877842]
[1772921106398,0.09387278,67443.0,67427.0,0.00138862]
[1772921108164,0.07435739,67443.0,67427.0,0.00138862]
[1772921108419,0.01949539,67440.0,67428.0,0.07415317]
[1772921112380,0.0197154,67440.0,67428.0,0.07415317]
[1772921115267,0.00022001,67443.0,67430.0,0.0877842]
[1772921115554,0.00022001,67443.0,67431.0,0.01808453]
[1772921115760,0.00022001,67443.0,67432.0,0.00148]
[1772921116937,0.0197154,67443.0,67433.0,0.07414767]
[1772921119456,0.00022001,67443.0,67433.0,0.07414767]
[1772921120071,0.00022001,67446.0,67433.0,0.16193187]
[1772921120291,0.00062001,67450.0,67434.0,0.01808453]
[1772921120504,0.00062001,67450.0,67438.0,0.01808453]
[1772921120703,0.00062001,67450.0,67440.0,0.01808453]
[1772921121272,0.00062001,67450.0,67441.0,0.07413887]
[1772921121468,0.00034271,67454.0,67442.0,0.01808453]
[1772921121678,0.00039612,67454.0,67443.0,0.01808453]
[1772921124609,0.00039612,67454.0,67444.0,0.07413557]
[1772921124803,0.00039612,67454.0,67445.0,0.00148]
[1772921126688,0.00039612,67454.0,67446.0,0.07413338]
[1772921126890,0.01989151,67454.0,67446.0,0.07413338]
[1772921128923,0.00039612,67454.0,67446.0,0.07413338]
[1772921129121,0.00597001,67457.0,67447.0,0.01808453]
[1772921129289,0.00597001,67457.0,67447.0,0.01813794]
[1772921129488,0.0741114,67466.0,67449.0,0.01808453]
[1772921129816,0.07423332,67467.0,67451.0,0.01808453]
[1772921129983,0.09372871,67467.0,67453.0,0.01808453]
[1772921130820,0.09372871,67467.0,67454.0,0.07412458]
[1772921131509,0.09372921,67467.0,67454.0,0.07412458]
[1772921132277,0.09372921,67467.0,67455.0,0.01808453]
[1772921132498,0.07423382,67467.0,67455.0,0.01808453]
[1772921133256,0.07423382,67467.0,67456.0,0.07412239]
[1772921135202,0.07445383,67467.0,67456.0,0.07412239]
[1772921139318,0.00034271,67467.0,67457.0,0.0172107]
[1772921139616,0.00034271,67467.0,67453.0,0.07412239]
[1772921139617,0.01789627,67464.0,67458.0,0.00148]
[1772921139815,0.09251565,67463.0,67449.0,0.09134078]
[1772921140021,0.09251565,67463.0,67450.0,0.0186907]
[1772921140216,0.09200877,67465.0,67450.0,0.0186907]
[1772921140421,0.09200877,67465.0,67451.0,0.00148]
[1772921141815,0.01789627,67463.0,67452.0,0.07412678]
[1772921142587,0.01789627,67463.0,67456.0,0.0002]
[1772921142738,0.01789627,67463.0,67457.0,0.00148]
[1772921145932,0.01789627,67463.0,67457.0,0.0756007]
[1772921146220,0.0741125,67465.0,67457.0,0.0756007]
[1772921148328,0.0741125,67465.0,67458.0,0.00148]
[1772921148527,0.0741125,67465.0,67456.0,0.0002]
[1772921148528,0.0741125,67465.0,67459.0,0.00148]
[1772921148729,0.01789627,67462.0,67459.0,0.00148]
[1772921149093,0.0741125,67465.0,67459.0,0.00130912]
[1772921149296,0.07411189,67466.0,67459.0,0.00130912]
[1772921149983,0.07411189,67466.0,67460.0,0.00148]
[1772921150789,0.00034271,67474.0,67460.0,0.07559796]
[1772921150992,0.00015,67476.0,67462.0,0.0172107]
[1772921151135,0.07425103,67476.0,67462.0,0.0172107]
[1772921151334,0.00015,67476.0,67462.0,0.0172107]
[1772921151552,0.07450157,67475.0,67462.0,0.0172107]
[1772921152051,0.07450157,67475.0,67463.0,0.00148]
[1772921152920,0.07450157,67475.0,67464.0,0.0741136]
[1772921153200,0.09239784,67475.0,67464.0,0.0741136]
[1772921153920,0.09239784,67475.0,67464.0,0.0745369]
[1772921155423,0.09261785,67475.0,67464.0,0.0745369]
[1772921157603,0.07472158,67475.0,67464.0,0.0917476]
[1772921157816,0.07472158,67475.0,67465.0,0.0172107]
[1772921158796,0.07472158,67475.0,67465.0,0.017634]
[1772921159283,0.07472158,67475.0,67465.0,0.0004233]
[1772921159885,0.00062001,67475.0,67466.0,0.0741114]
[1772921160853,0.00062001,67475.0,67466.0,0.0745347]
[1772921161260,0.07472155,67475.0,67466.0,0.0745347]
[1772921161463,0.0183706,67474.0,67467.0,0.00148]
[1772921161684,0.0183706,67473.0,67443.0,0.07413597]
[1772921161855,0.0183706,67469.0,67457.0,0.07412129]
[1772921162056,0.0183706,67467.0,67459.0,0.0002]
[1772921165321,0.07410974,67468.0,67459.0,0.0002]
[1772921165736,0.0183706,67467.0,67459.0,0.0002]
[1772921165947,0.0183706,67463.0,67460.0,0.00148]
[1772921166363,0.0183706,67467.0,67460.0,0.00148]
[1772921169063,0.01823339,67465.0,67460.0,0.00148]
[1772921169432,0.01823339,67463.0,67460.0,0.00148]
[1772921170913,0.01823339,67463.0,67459.0,0.0002]
[1772921171093,0.01823339,67463.0,67461.0,0.00148]
[1772921172699,0.01823339,67461.0,67456.0,0.07432197]
[1772921172939,0.01823339,67461.0,67457.0,0.00148]
[1772921173991,0.07411475,67463.0,67452.0,0.0003489]
[1772921174180,0.01823339,67461.0,67453.0,0.00148]
[1772921174800,0.01823339,67461.0,67454.0,0.00148]
[1772921175818,0.01823339,67461.0,67449.0,0.07432982]
[1772921175819,0.01823339,67459.0,67455.0,0.00148]
[1772921176187,0.01823339,67459.0,67456.0,0.00148]
[1772921177847,0.07412019,67458.0,67449.0,0.07432958]
[1772921178098,0.07412019,67458.0,67450.0,0.00148]
[1772921178539,0.07412019,67458.0,67451.0,0.00148]
[1772921179263,0.07412019,67458.0,67452.0,0.00148]
[1772921179452,0.01823339,67457.0,67449.0,0.0002]
[1772921179656,0.01823339,67457.0,67450.0,0.00148]
[1772921179802,0.09235578,67456.0,67450.0,0.00148]
[1772921180005,0.09235578,67456.0,67451.0,0.00148]
[1772921180479,0.09235578,67456.0,67447.0,0.07418481]
[1772921180795,0.09235578,67456.0,67448.0,0.00148]
[1772921180932,0.09235578,67456.0,67447.0,0.07418481]
[1772921181135,0.09235578,67456.0,67448.0,0.00148]
[1772921181389,0.07412239,67456.0,67449.0,0.00148]
[1772921181609,0.01823339,67455.0,67446.0,0.07413338]
[1772921181911,0.07412239,67458.0,67450.0,0.00148]
[1772921182088,0.07412239,67458.0,67448.0,0.07413086]
[1772921182291,0.07412239,67458.0,67451.0,0.00148]
[1772921183494,0.01823339,67457.0,67451.0,0.00148]
[1772921183681,0.07412239,67458.0,67451.0,0.00148]
[1772921185996,0.01823339,67457.0,67451.0,0.00148]
[1772921188344,0.01823339,67457.0,67445.0,0.0002]
[1772921188345,5.99832,67450.0,67445.0,0.0002]
[1772921188564,5.99832,67450.0,67446.0,0.00148]
[1772921190194,5.99832,67450.0,67446.0,0.01869822]
[1772921190742,5.99832,67450.0,67447.0,0.07413228]
[1772921193893,5.99832,67450.0,67447.0,0.0913505]
[1772921196374,4.26621909,67450.0,67448.0,0.01721822]
[1772921196487,3.43582021,67450.0,67448.0,0.01721822]
[1772921196892,3.43582021,67450.0,67449.0,0.0913483]
[1772921197475,3.43582021,67450.0,67449.0,0.1553408]
[1772921198439,3.43604022,67450.0,67449.0,0.1553408]
[1772921199452,3.43604022,67450.0,67422.0,0.03234816]
[1772921199453,0.02020244,67425.0,67422.0,0.03234816]
[1772921199670,0.00022001,67450.0,67433.0,0.02157827]
[1772921199671,0.00092711,67450.0,67433.0,0.02157827]
[1772921199903,0.0001602,67452.0,67435.0,0.02157827]
[1772921201135,0.07412264,67456.0,67435.0,0.02157827]
[1772921201838,0.07412264,67456.0,67437.0,0.02157827]
[1772921203021,0.07412264,67456.0,67437.0,0.02257827]
[1772921203425,0.07412264,67456.0,67437.0,0.02357827]
[1772921204183,0.04396382,67470.0,67437.0,0.02357827]
[1772921204184,0.07433165,67466.0,67439.0,0.02157827]
[1772921204511,0.07433165,67466.0,67438.0,0.07414217]
[1772921204512,0.12300275,67463.0,67441.0,0.02157827]
[1772921204716,0.12300275,67463.0,67438.0,0.07414217]
[1772921204717,0.02151208,67460.0,67443.0,0.02157827]
[1772921205030,0.02151208,67460.0,67438.0,0.07414217]
[1772921205031,0.12300275,67459.0,67445.0,0.02157827]
[1772921205384,0.14451483,67459.0,67446.0,0.00148]
[1772921206436,0.12270675,67455.0,67433.0,0.02157827]
[1772921206664,0.12270675,67451.0,67433.0,0.07454812]
[1772921206865,0.02151208,67448.0,67434.0,0.00148]
[1772921207080,0.12270675,67445.0,67437.0,0.0002]
[1772921207357,0.07412019,67458.0,67438.0,0.00148]
[1772921207358,0.14421883,67441.0,67438.0,0.00148]
[1772921207558,0.14392283,67440.0,67431.0,0.07414987]
[1772921207773,0.14392283,67440.0,67432.0,0.00148]
[1772921208138,0.14392283,67440.0,67433.0,0.00148]
[1772921208576,0.14392283,67440.0,67430.0,0.07435037]
[1772921208577,0.14392283,67440.0,67434.0,0.00148]
[1772921208899,0.00040023,67441.0,67435.0,0.00148]
[1772921208900,0.02151208,67438.0,67435.0,0.00148]
[1772921209052,1e-08,67430.0,67429.0,0.07415203]
[1772921209226,1e-08,67430.0,67429.0,0.07563203]
[1772921214132,0.00040023,67441.0,67430.0,0.02157827]
[1772921214891,0.00040023,67441.0,67431.0,0.07414987]
[1772921215126,0.00040023,67441.0,67432.0,0.02157827]
[1772921216533,0.00040023,67441.0,67432.0,0.02257827]
[1772921217743,0.00040023,67441.0,67433.0,0.09572594]
[1772921218225,0.00040023,67441.0,67434.0,0.02157827]
[1772921218398,0.00040023,67441.0,67435.0,0.00148]
[1772921220219,0.00040023,67441.0,67436.0,0.07414437]
[1772921228884,0.00062024,67441.0,67436.0,0.07414437]
[1772921233688,4.56366769,67435.0,67434.0,0.0992615]
[1772921233866,4.56094964,67435.0,67434.0,0.1007415]
[1772921234763,0.02413217,67433.0,67418.0,0.07416357]
[1772921234965,0.11455836,67432.0,67419.0,0.00148]
[1772921235817,0.18870769,67432.0,67420.0,0.07416196]
[1772921236624,0.21283986,67432.0,67420.0,0.07416196]
[1772921236839,0.21283986,67432.0,67423.0,0.0002]
[1772921237060,0.21283986,67432.0,67417.0,0.0002]
[1772921237061,0.02413217,67430.0,67417.0,0.0002]
[1772921237219,0.11455836,67427.0,67418.0,0.00148]
[1772921237437,0.11455836,67423.0,67419.0,0.00148]
[1772921237750,0.02413217,67427.0,67420.0,0.00148]
[1772921237951,0.13869053,67427.0,67420.0,0.00148]
[1772921242375,0.07415537,67426.0,67420.0,0.00148]
[1772921258051,0.07415097,67430.0,67420.0,0.00148]
[1772921258289,0.11846411,67429.0,67420.0,0.00148]
[1772921258492,4.43004317,67420.0,67419.0,0.07436306]
[1772921258692,4.43004317,67420.0,67419.0,0.10907459]
[1772921258862,4.3006167,67420.0,67419.0,0.10907459]
[1772921259581,4.3006167,67420.0,67419.0,0.10918145]
[1772921261412,4.07665898,67420.0,67419.0,0.07594992]
[1772921261605,4.07517898,67420.0,67419.0,0.10918145]
[1772921261770,4.07369898,67420.0,67419.0,0.10918145]
[1772921261976,4.07221898,67420.0,67419.0,0.10918145]
[1772921262161,3.99658118,67420.0,67419.0,0.10918145]
[1772921262360,3.91650338,67420.0,67419.0,0.10918145]
[1772921262603,3.91650338,67420.0,67419.0,0.03501839]
[1772921263241,3.91650338,67420.0,67419.0,0.00178686]
[1772921269101,3.91650338,67420.0,67419.0,0.00148]
[1772921269711,3.91650338,67420.0,67419.0,0.00168]
[1772921271768,3.91650338,67420.0,67419.0,0.07584306]
[1772921274734,3.91650338,67420.0,67419.0,0.03471153]
[1772921275141,3.91650338,67420.0,67419.0,0.00148]
[1772921277266,3.91650338,67420.0,67419.0,0.00168]
[1772921278360,3.91650338,67420.0,67419.0,0.07584306]
[1772921279594,3.91650338,67420.0,67419.0,0.00168]
[1772921280197,3.90872407,67420.0,67419.0,0.03464925]
[1772921280598,3.90872407,67420.0,67419.0,0.03444925]
[1772921280807,3.90872407,67420.0,67419.0,0.00148]
[1772921281472,0.72538317,67420.0,67419.0,0.03444925]
[1772921282116,0.71742476,67420.0,67419.0,0.03444925]
[1772921282315,1e-08,67420.0,67419.0,0.03444925]
[1772921282642,9.78e-05,67424.0,67419.0,0.03444925]
[1772921283195,9.78e-05,67424.0,67420.0,0.07416196]
[1772921283399,9.78e-05,67424.0,67421.0,0.03296925]
[1772921286687,9.78e-05,67424.0,67421.0,0.07415982]
[1772921286835,9.78e-05,67424.0,67422.0,0.03296925]
[1772921289382,9.78e-05,67424.0,67423.0,0.10712791]
[1772921289599,0.0100978,67424.0,67423.0,0.10712791]
[1772921291024,0.00022001,67432.0,67424.0,0.03296925]
[1772921291238,0.00022001,67432.0,67426.0,0.03296925]
[1772921291439,0.00022001,67432.0,67428.0,0.03296925]
[1772921291605,0.00022001,67431.0,67428.0,0.03296925]
[1772921293665,0.00022001,67431.0,67429.0,0.07415207]
[1772921293857,0.00022001,67431.0,67430.0,0.03296925]
[1772921294467,0.00022001,67431.0,67429.0,0.10712132]
[1772921295182,0.00022001,67431.0,67430.0,0.03296925]
[1772921295548,0.00022001,67432.0,67430.0,0.03296925]
[1772921295549,5.19247861,67435.0,67430.0,0.03296925]
[1772921295750,5.15004767,67435.0,67433.0,0.03296925]
[1772921295975,5.05831362,67435.0,67433.0,0.03296925]
[1772921296152,1.65901302,67435.0,67432.0,0.07414877]
[1772921296365,1.64576532,67435.0,67433.0,0.03296925]
[1772921298307,1.64576532,67435.0,67434.0,0.10711582]
[1772921298499,1.64598533,67435.0,67434.0,0.10711582]
[1772921299868,1.63273763,67435.0,67434.0,0.10711582]
[1772921300215,1.63273763,67435.0,67432.0,0.07414877]
[1772921300382,1.63273763,67435.0,67433.0,0.10496783]
[1772921301934,1.59425489,67435.0,67433.0,0.07414767]
[1772921302709,1.59425489,67435.0,67433.0,0.10496783]
[1772921302910,1.59425489,67435.0,67433.0,0.10596783]
[1772921303501,1.59425489,67435.0,67433.0,0.10496783]
[1772921303935,1.60425489,67435.0,67433.0,0.10496783]
[1772921307002,1.60425489,67435.0,67434.0,0.00148]
[1772921310131,1.38183039,67435.0,67434.0,0.07562657]
[1772921310370,1.23354739,67435.0,67434.0,0.07562657]
[1772921310574,1.08526439,67435.0,67434.0,0.07562657]
[1772921310871,0.9369814,67435.0,67434.0,0.07562657]
[1772921311071,0.71307692,67435.0,67434.0,0.07562657]
[1772921311239,0.00022001,67439.0,67434.0,0.07562657]
[1772921311440,0.00022001,67439.0,67435.0,0.03713877]
[1772921312035,0.00022001,67439.0,67434.0,0.07562657]
[1772921312373,0.60022001,67438.0,67434.0,0.07562657]
[1772921312584,5.9258585,67435.0,67434.0,0.07562657]
[1772921314281,5.9258585,67435.0,67434.0,0.00148]
[1772921314805,5.9258585,67435.0,67434.0,0.04014048]
[1772921316399,5.9258585,67435.0,67434.0,0.11428705]
[1772921316604,5.23478888,67435.0,67434.0,0.1152209]
[1772921317665,4.78520843,67435.0,67434.0,0.07562657]
[1772921317865,4.78520843,67435.0,67434.0,0.11539096]
[1772921319312,4.63714545,67435.0,67434.0,0.11539096]
[1772921319603,4.48886245,67435.0,67434.0,0.11539096]
[1772921319809,4.26643795,67435.0,67434.0,0.11639096]
[1772921319984,4.19229645,67435.0,67434.0,0.11639096]
[1772921320157,4.04401345,67435.0,67434.0,0.11639096]
[1772921320362,3.89573045,67435.0,67434.0,0.11639096]
[1772921320559,3.82158895,67435.0,67434.0,0.11639096]
[1772921320762,3.67330595,67435.0,67434.0,0.07762657]
[1772921320963,3.24016807,67435.0,67434.0,0.07562657]
[1772921321206,3.24016807,67435.0,67434.0,0.00148]
[1772921321207,3.16602657,67435.0,67434.0,0.00148]
[1772921321411,3.16602657,67435.0,67434.0,0.04224439]
[1772921321777,3.16602657,67435.0,67434.0,0.04124439]
[1772921321978,3.17602657,67435.0,67434.0,0.04124439]
[1772921322174,3.17602657,67435.0,67433.0,0.0002]
[1772921322378,3.17602657,67435.0,67434.0,0.00148]
[1772921322379,3.95858998,67435.0,67434.0,0.00148]
[1772921322795,3.77602657,67435.0,67434.0,0.00148]
[1772921323110,3.77454657,67435.0,67434.0,0.00148]
[1772921323314,3.77306658,67435.0,67434.0,0.00148]
[1772921323517,3.77306658,67435.0,67434.0,0.0016261]
[1772921323871,3.77306658,67435.0,67434.0,0.07577267]
[1772921324835,3.77306658,67435.0,67434.0,0.00148]
[1772921325733,3.77306658,67435.0,67434.0,0.07562657]
[1772921328623,3.77158659,67435.0,67434.0,0.00148]
[1772921329026,9.77158659,67435.0,67434.0,0.00148]
[1772921329762,9.47158659,67435.0,67434.0,0.07562657]
[1772921331952,9.47158659,67435.0,67434.0,0.11495929]
[1772921332152,9.17158659,67435.0,67434.0,0.11495929]
[1772921332360,9.47507874,67435.0,67434.0,0.11495929]
[1772921333391,9.47507874,67435.0,67434.0,0.00148]
[1772921334788,9.47507874,67435.0,67434.0,0.07562657]
[1772921336357,9.47507874,67435.0,67434.0,0.00148]
[1772921337424,9.47507874,67435.0,67434.0,0.07562657]
[1772921337678,9.47507874,67435.0,67434.0,0.00148]
[1772921340449,9.65675415,67435.0,67434.0,0.00148]
[1772921340647,9.47507874,67435.0,67434.0,0.00148]
[1772921343876,9.47507874,67435.0,67434.0,0.07562657]
[1772921344117,9.47159874,67435.0,67434.0,0.07562657]
[1772921344455,9.45235874,67435.0,67434.0,0.07562657]
[1772921344660,9.43903874,67435.0,67434.0,0.07562657]
[1772921344858,9.42719874,67435.0,67434.0,0.07562657]
[1772921345016,9.42571874,67435.0,67434.0,0.07562657]
[1772921345238,9.31061543,67435.0,67434.0,0.07562657]
[1772921345438,9.29877543,67435.0,67434.0,0.07562657]
[1772921347873,9.27798478,67435.0,67434.0,0.00148]
[1772921348076,9.24887661,67435.0,67434.0,0.00148]
[1772921348276,8.94887661,67435.0,67434.0,0.00148]
[1772921348478,8.57177619,67435.0,67434.0,0.00148]
[1772921348806,8.57029616,67435.0,67434.0,0.00148]
[1772921349872,8.42053646,67435.0,67434.0,0.00148]
[1772921350086,8.41905643,67435.0,67434.0,0.07562657]
[1772921350447,9.01905643,67435.0,67434.0,0.07562657]
[1772921351328,9.01905643,67435.0,67434.0,0.00148]
[1772921351622,9.01905643,67435.0,67434.0,0.00168]
[1772921352195,9.01757643,67435.0,67434.0,0.00168]
[1772921352425,9.01609643,67435.0,67434.0,0.00168]
[1772921353449,0.18249699,67434.0,67412.0,0.07431217]
[1772921353612,0.18249699,67430.0,67412.0,0.07431217]
[1772921353823,0.18249699,67430.0,67409.0,0.00015]
[1772921353824,0.18249699,67426.0,67413.0,0.00148]
[1772921354023,0.04041627,67423.0,67414.0,0.00148]
[1772921354242,0.04041627,67419.0,67414.0,0.00148]
[1772921354444,0.00148,67427.0,67414.0,0.00148]
[1772921354445,0.18249699,67416.0,67414.0,0.00148]
[1772921354644,0.04041627,67413.0,67412.0,0.00148]
[1772921354847,0.18101699,67410.0,67403.0,0.07993026]
[1772921355046,0.18101699,67410.0,67404.0,0.00148]
[1772921355224,0.18101699,67410.0,67405.0,0.00148]
[1772921355423,0.37417077,67412.0,67400.0,0.0012]
[1772921355424,0.18249699,67408.0,67400.0,0.0012]
[1772921355649,0.04041627,67407.0,67401.0,0.00148]
[1772921355812,0.04041627,67407.0,67402.0,0.00148]
[1772921355813,0.22291326,67406.0,67402.0,0.00148]
[1772921356416,0.22291326,67406.0,67403.0,0.00148]
[1772921356628,0.18249699,67404.0,67403.0,0.00148]
[1772921356830,0.18101699,67404.0,67401.0,0.07418213]
[1772921357045,0.10536141,67404.0,67402.0,0.00148]
[1772921357244,0.05336408,67404.0,67402.0,0.00148]
[1772921357462,0.07418067,67403.0,67392.0,0.07419231]
[1772921357672,0.18761151,67402.0,67393.0,0.07419074]
[1772921357882,0.18761151,67402.0,67394.0,0.00148]
[1772921358236,0.18761151,67400.0,67393.0,0.07419074]
[1772921358408,0.23049107,67400.0,67394.0,0.00148]
[1772921358746,0.23049107,67400.0,67386.0,0.1186867]
[1772921358747,0.18761151,67397.0,67395.0,0.00148]
[1772921358875,0.23049107,67394.0,67381.0,0.07420489]
[1772921359080,0.23049107,67394.0,67382.0,0.00148]
[1772921359277,0.18761151,67392.0,67381.0,0.07420489]
[1772921359479,0.18761151,67388.0,67385.0,0.0002]
[1772921359672,0.18761151,67388.0,67381.0,0.07420489]
[1772921359920,0.18761151,67388.0,67382.0,0.00148]
[1772921359921,0.23049107,67388.0,67382.0,0.00148]
[1772921360362,0.23049107,67388.0,67381.0,0.07420489]
[1772921360501,0.04287956,67386.0,67383.0,0.00148]
[1772921360832,0.23049107,67386.0,67380.0,9e-05]
[1772921360992,0.52432469,67385.0,67380.0,9e-05]
[1772921361218,0.52432469,67385.0,67381.0,0.00148]
[1772921361572,0.56720425,67385.0,67380.0,9e-05]
[1772921361768,0.56720425,67385.0,67381.0,0.0016001]
[1772921362159,0.34287956,67385.0,67381.0,0.0016001]
[1772921364681,0.34287956,67385.0,67382.0,0.07420379]
[1772921364885,0.3,67385.0,67381.0,0.07580491]
[1772921365064,0.18761151,67382.0,67376.0,0.07421008]
[1772921365384,0.22432469,67384.0,67377.0,0.00148]
[1772921365612,0.04287956,67396.0,67378.0,0.0444879]
[1772921365814,0.11706793,67396.0,67379.0,0.0444879]
[1772921366385,0.04287956,67395.0,67379.0,0.0444879]
[1772921366582,0.07419058,67394.0,67380.0,0.11869389]
[1772921366988,0.04287956,67395.0,67380.0,0.07420599]
[1772921367200,0.07418757,67397.0,67381.0,0.0444879]
[1772921367400,0.11706713,67397.0,67381.0,0.0444879]
[1772921368375,0.04287956,67397.0,67381.0,0.19563496]
[1772921368546,0.26179348,67402.0,67385.0,0.0444879]
[1772921368719,0.04287956,67401.0,67386.0,0.0459679]
[1772921369379,0.00575,67403.0,67388.0,0.0444879]
[1772921370647,0.00575,67403.0,67389.0,0.11868398]
[1772921370799,0.00575,67403.0,67392.0,0.00015]
[1772921370998,0.00575,67403.0,67393.0,0.00148]
[1772921373310,4.67885564,67390.0,67389.0,0.07419608]
[1772921373516,4.50130914,67390.0,67389.0,0.12016398]
[1772921373715,4.39917182,67390.0,67389.0,0.07567608]
[1772921373931,4.11229404,67390.0,67389.0,0.12016398]
[1772921374120,3.80263036,67390.0,67389.0,0.12016398]
[1772921374320,3.49684788,67390.0,67389.0,0.12116398]
[1772921374616,3.29068318,67390.0,67389.0,0.12116398]
[1772921374784,3.03241971,67390.0,67389.0,0.12116398]
[1772921374984,2.80844309,67390.0,67389.0,0.07667608]
[1772921375182,2.66007429,67390.0,67389.0,0.07667608]
[1772921375526,2.30506407,67390.0,67389.0,0.12116398]
[1772921375650,2.13393444,67390.0,67389.0,0.12116398]
[1772921375866,1.98556564,67390.0,67389.0,0.12116398]
[1772921376112,1.73827477,67390.0,67389.0,0.07667608]
[1772921376393,1.52185151,67390.0,67389.0,0.07667608]
[1772921376562,1.22993054,67390.0,67389.0,0.07667608]
[1772921376714,1.05195229,67390.0,67389.0,0.07667608]
[1772921376909,0.86197018,67390.0,67389.0,0.07567608]
[1772921377117,0.86197018,67390.0,67364.0,0.07422031]
[1772921377118,0.75330623,67390.0,67364.0,0.07422031]
[1772921377357,0.75330623,67390.0,67365.0,0.0444879]
[1772921377358,0.6791103,67390.0,67365.0,0.0444879]
[1772921377558,0.75330538,67390.0,67370.0,0.19047612]
[1772921377730,0.75330538,67390.0,67372.0,0.0444879]
[1772921377933,0.75330538,67390.0,67374.0,0.0444879]
[1772921378139,0.75330538,67390.0,67366.0,0.12463919]
[1772921378376,0.19000603,67387.0,67367.0,0.00148]
[1772921378582,0.19000603,67385.0,67367.0,0.00148]
[1772921378728,0.05399022,67383.0,67368.0,0.00148]
[1772921378940,0.05399022,67383.0,67368.0,0.05189778]
[1772921379678,0.12819326,67383.0,67369.0,0.07421811]
[1772921380182,0.31819929,67383.0,67369.0,0.07421811]
[1772921380378,0.31819929,67383.0,67370.0,0.00148]
[1772921380758,0.31819929,67383.0,67371.0,0.00148]
[1772921381438,0.05399022,67382.0,67371.0,0.00148]
[1772921381681,0.31820114,67381.0,67371.0,0.07569569]
[1772921382035,0.31820114,67381.0,67372.0,0.00148]
[1772921382233,0.31820114,67381.0,67369.0,0.0002]
[1772921382234,0.07420489,67381.0,67369.0,0.0002]
[1772921382486,0.07420489,67381.0,67370.0,0.00148]
[1772921382662,0.07420489,67381.0,67364.0,0.07462428]
[1772921382663,0.05399022,67379.0,67364.0,0.07462428]
[1772921382862,0.05399022,67376.0,67365.0,0.00148]
[1772921383265,0.05399022,67376.0,67361.0,0.0001764]
[1772921383266,0.19000603,67374.0,67355.0,0.0002]
[1772921383589,0.07421921,67368.0,67356.0,0.00148]
[1772921383739,0.05399022,67366.0,67356.0,0.00148]
[1772921385195,0.05399022,67366.0,67356.0,0.0017402]
[1772921385375,0.05399022,67365.0,67356.0,0.0017402]
[1772921385573,0.05399022,67365.0,67356.0,0.07597245]
[1772921386200,0.05399022,67362.0,67357.0,0.00128]
[1772921389220,0.12817462,67361.0,67357.0,0.00128]
[1772921390020,0.12817462,67361.0,67357.0,0.00148]
[1772921390246,0.12802462,67361.0,67357.0,0.00148]
[1772921391243,0.12802462,67361.0,67358.0,0.00148]
[1772921393504,0.07422376,67364.0,67358.0,0.07570986]
[1772921394612,0.07421921,67368.0,67358.0,0.07570986]
[1772921397327,0.05399022,67369.0,67358.0,0.07570986]
[1772921398771,0.00022001,67368.0,67358.0,0.07570986]
[1772921398996,0.00022001,67368.0,67358.0,0.07422986]
[1772921399198,0.00022001,67368.0,67359.0,0.00148]
[1772921399360,0.00022001,67368.0,67360.0,0.07422802]
[1772921402518,0.00022001,67368.0,67360.0,0.12254694]
[1772921403956,1.86708525,67350.0,67347.0,0.25231794]
[1772921404135,0.00022001,67368.0,67357.0,0.04831892]
[1772921404295,0.00022001,67368.0,67358.0,0.00148]
[1772921405113,0.00022001,67368.0,67358.0,0.00187994]
[1772921405533,0.00022001,67368.0,67359.0,0.07422913]
[1772921410770,0.00022001,67368.0,67360.0,0.00148]
[1772921414229,0.00022001,67368.0,67361.0,0.07422692]
[1772921415162,0.07421701,67370.0,67361.0,0.07422692]
[1772921417374,0.07421629,67371.0,67361.0,0.07422692]
[1772921417702,0.00062001,67375.0,67362.0,0.05325906]